Cogmind - Beta 17 @@@ ROGUE MODE // 2026.08.10 @ 18:43:29 Player: Spoodle Result: Self-destructed Performance ------------- Evolutions (3) 1500 Regions Visited (8) 1600 Robots Destroyed (123) 615 Value Destroyed (3084) 3084 Prototype IDs (24) 480 Alien Tech Used (0) 0 Bonus (77) 77 TOTAL SCORE: 7356 Bonus ------- Follower Combat Kills 77 Cogmind --------- Core Integrity 664/700 Matter 266/300 Energy 290/290 System Corruption 1% Temperature Cool (0) Movement Treading (162) Location -7/Factory Parts ------- > --- POWER (1) -------- Improved Deuterium Engine > --- PROPULSION (4) --- Light Treads Light Treads Light Treads Armored Treads > --- UTILITY (5) ------ High-capacity Storage Unit Improved Signal Interpreter Seismic Detector Advanced Targeting Computer Hardened Light Armor Plating > --- WEAPON (3) ------- Improved Assault Rifle Improved Assault Rifle Enhanced Autogun > --- INVENTORY (20) --- Ion Engine Improved Deuterium Engine Light Treads Light Treads Light Treads Light Treads Light Treads Medium Treads Experimental Sensor Array Improved Melee Analysis Suite Improved Medium Armor Plating Bomb Drone Bay (16/16) Heavy Laser Improved Assault Rifle Minigun Minigun Gauss Rifle Missile Launcher Scythe Peak State ------------ > --- POWER ------------ Improved Deuterium Engine > --- PROPULSION ------- Light Treads Light Treads Light Treads Armored Treads > --- UTILITY ---------- High-capacity Storage Unit Experimental Sensor Array Improved Signal Interpreter Advanced Targeting Computer Hardened Light Armor Plating > --- WEAPON ----------- Improved Assault Rifle Improved Assault Rifle Enhanced Autogun > --- INVENTORY -------- Ion Engine Improved Deuterium Engine Light Treads Light Treads Light Treads Light Treads Light Treads Medium Treads Seismic Detector Improved Melee Analysis Suite Improved Medium Armor Plating Bomb Drone Bay Improved Assault Rifle Improved Assault Rifle Minigun Minigun Gauss Rifle Missile Launcher Scythe [Rating: 43] Favorites ----------- Power Ion Engine Engine Ion Engine Propulsion Light Treads Treads Light Treads Leg Aluminum Leg Hover Unit Aerolev Unit Flight Unit Improved Flight Unit Utility High-capacity Storage Unit Device Improved Heat Sink Storage High-capacity Storage Unit Processor Advanced Targeting Computer Hackware Hacking Suite Protection Hardened Light Armor Plating Weapon Improved Assault Rifle Energy Gun Small Laser Energy Cannon Beam Cannon Ballistic Gun Improved Assault Rifle Ballistic Cannon Light Cannon Launcher Missile Launcher Slashing Weapon Scythe Special Melee Weapon Datajack Build | -11 -10 -10 -9 -9 -9 -8 -8 -7 ------- Run | Yrd Mat Min Mat Min Exi Min Mat Fac Slots Evolved 6 | . . . 2 . . . 2 2 Power . | . . . . . . . . . Propulsion 2 | . . . 1 . . . 1 . Utility 3 | . . . 1 . . . . 2 Weapon 1 | . . . . . . . 1 . Parts Attached 82 | 6 14 1 29 2 3 . 20 7 Power 9 | 1 . . 5 . . . 2 1 Engine 9 | 1 . . 5 . . . 2 1 Core . | . . . . . . . . . Reactor . | . . . . . . . . . Propulsion 26 | 2 4 . 6 1 . . 12 1 Treads 20 | . 2 . 5 1 . . 11 1 Leg 4 | 2 2 . . . . . . . Wheel . | . . . . . . . . . Hover 1 | . . . . . . . 1 . Flight 1 | . . . 1 . . . . . Utility 22 | 1 7 . 8 . . . 3 3 Device 6 | . 2 . 2 . . . . 2 Storage 6 | 1 3 . 1 . . . 1 . Processor 2 | . . . . . . . 1 1 Hackware 2 | . . . 2 . . . . . Protection 6 | . 2 . 3 . . . 1 . Artifact . | . . . . . . . . . Weapon 25 | 2 3 1 10 1 3 . 3 2 Energy Gun 9 | 2 2 . 4 . . . 1 . Energy Cannon 2 | . . . 2 . . . . . Ballistic Gun 7 | . . . 2 . 2 . 2 1 Ballistic Cannon 1 | . 1 . . . . . . . Launcher 4 | . . 1 2 1 . . . . Special Weapon . | . . . . . . . . . Impact Weapon . | . . . . . . . . . Slashing Weapon 1 | . . . . . . . . 1 Piercing Weapon . | . . . . . . . . . Special Melee Weapon 1 | . . . . . 1 . . . Unidentified Prototypes 9 | . . . 6 . . . 2 1 Parts Lost 4 | . 1 . . . . . 3 . Power 1 | . . . . . . . 1 . Propulsion . | . . . . . . . . . Utility 3 | . 1 . . . . . 2 . Weapon . | . . . . . . . . . Highest Loss Streak 1 | . 1 . . . . . 1 . To Critical Strikes . | . . . . . . . . . Average Backups 16 | 4 11 14 17 18 18 18 19 18 Power 1 | . 1 1 1 1 1 1 1 2 Propulsion 4 | 1 3 3 2 3 3 4 5 5 Utility 5 | . 4 6 6 6 7 6 6 3 Weapon 5 | 1 2 3 6 7 7 6 6 7 Tool/Special . | . . . . . . . . . Unused Backups 27 | . 3 . 7 . . . 3 14 Power 2 | . 1 . . . . . . 1 Propulsion 7 | . . . . . . . 1 6 Utility 8 | . 2 . 2 . . . 1 3 Weapon 10 | . . . 5 . . . 1 4 Tool/Special . | . . . . . . . . . Average Slot Usage (%) 99 | . 100 100 97 100 89 100 99 99 Engine 10 | . 14 14 11 11 11 11 8 7 Treads 29 | . 13 28 31 33 33 33 36 30 Leg 2 | . 14 . . . . . . . Device 7 | . 2 6 6 11 11 11 6 8 Storage 10 | . 14 14 11 11 11 11 9 7 Processor 3 | . . . . . . . 6 13 Hackware 1 | . . . 9 . . . . . Protection 8 | . 11 7 5 11 11 11 5 7 Energy Gun 5 | . 19 13 8 . . . . . Ballistic Gun 14 | . . . 10 22 1 21 26 21 Ballistic Cannon 2 | . 8 14 2 . . . . . Peak Build Rating 43 | 6 10 10 25 24 24 24 29 43 Average Rating 20 | 5 8 9 19 22 19 24 26 39 On Entrance 16 | . 6 9 10 22 24 24 24 27 Avg Prop Armor Cover (%) . | . . . . . . . . . Naked Turns . | . . . . . . . . . Heaviest Build 95 | 13 32 32 60 63 62 65 95 70 Greatest Support 83 | 20 40 40 60 63 63 63 83 80 Greatest Overweight (x) 1 | . 1 . . 1 . 1 1 . Average Overweight (x) . | . . . . . . . . . Largest Inventory Capacity 25 | 8 15 15 20 20 20 20 25 20 Average Capacity 18 | 7 12 15 18 20 20 20 21 20 Most Carried 24 | 7 14 15 20 20 20 20 24 20 Average Carried 17 | 4 11 14 18 19 19 19 20 19 Final Capacity 20 | 8 15 15 20 20 20 20 20 20 Final Carried 20 | 7 14 15 20 20 18 20 20 20 Class Distribution -------------------- 58% | Mutant 23% | Scavenger-Gunner 10% | Scavenger-Mutant 3% | Tank Dominant Class ---------------- Mutant | -10/Materials Mutant | -10/Mines Scavenger-Mutant | -9/Materials Mutant | -9/Mines Mutant | -9/Exiles Mutant | -8/Mines Scavenger-Gunner | -8/Materials Scavenger-Gunner | -7/Factory Resources | -11 -10 -10 -9 -9 -9 -8 -8 -7 ----------- Run | Yrd Mat Min Mat Min Exi Min Mat Fac Matter Collected 3053 | 260 207 79 737 166 . 167 1096 341 Remotely . | . . . . . . . . . Salvage Created 4380 | 221 576 102 1015 183 . 281 1514 488 Parts 259 | 18 33 5 66 18 . 17 79 23 Haulers Intercepted 10 | . 2 . 4 . . . 4 . Recyclers Shooed 10 | . 2 1 5 . . . 2 . Parts Field Recycled . | . . . . . . . . . Retrieved Matter . | . . . . . . . . . Parts Self-Destructed . | . . . . . . . . . Prevented . | . . . . . . . . . Parts Restored . | . . . . . . . . . Kills | -11 -10 -10 -9 -9 -9 -8 -8 -7 ------- Run | Yrd Mat Min Mat Min Exi Min Mat Fac Combat Hostiles Destroyed 75 | . 12 2 17 5 . 7 24 8 Guns 53 | . 10 . 8 2 . 4 21 8 Cannons 8 | . 2 1 5 . . . . . AOE 14 | . . 1 4 3 . 3 3 . Classes Destroyed 15 | 3 6 . 2 . . 2 1 1 Worker 8 | 2 . . 3 2 . . 1 . Builder 1 | . . . . . . . 1 . Tunneler 6 | 5 . . . 1 . . . . Hauler 10 | . 2 . 4 . . . 4 . Recycler 10 | 1 . 1 2 1 . 2 2 1 Mechanic 2 | . 1 . 1 . . . . . Operator 2 | . 1 . 1 . . . . . Watcher 8 | . 2 . 2 . . . 4 . Swarmer 19 | . 3 . 3 4 . 4 5 . Grunt 33 | . 9 2 6 2 . 1 8 5 Brawler 1 | . . . . . . 1 . . Duelist 2 | . . . 1 . . . 1 . Sentry 16 | . . . 7 . . . 8 1 Hunter 4 | . . . . . . 1 2 1 Programmer 1 | . . . . . . . . 1 Best Kill Streak 6 | 3 2 2 4 5 . 4 5 6 Combat Bots Only 5 | . 2 2 4 5 . 4 4 5 Max Kills in Single Turn 3 | 1 1 1 2 3 . 2 3 1 Gunslinging 1 | . . . . . . . 1 . Exploded 3 | . . 1 2 3 . 2 3 . Melee . | . . . . . . . . . Uniques/NPCs Destroyed . | . . . . . . . . . Combat | -11 -10 -10 -9 -9 -9 -8 -8 -7 -------- Run | Yrd Mat Min Mat Min Exi Min Mat Fac Hostile Shots Fired 323 | . 57 9 46 6 . 27 125 53 Missed 97 | . 12 3 17 1 . 8 40 16 Hits 226 | . 45 6 29 5 . 19 85 37 Melee 7 | . . . 5 . . . 2 . Projectile 219 | . 45 6 24 5 . 19 83 37 Critical Strikes 12 | . 2 . 2 1 . . 5 2 Damage Taken 3154 | . 527 87 489 35 . 202 1383 431 Core 324 | . 106 14 55 . . 6 107 36 Absorbed by Shields . | . . . . . . . . . Regen/Repaired (Parts) 118 | . . . . . . . 118 . Core Remaining (%) 79 | 100 . 52 . . . 84 80 . Volleys Fired 309 | 35 67 12 64 11 . 15 86 19 Largest 3 | 2 2 2 2 2 . 2 3 3 Hottest 121 | 90 90 70 121 46 . 46 69 71 Shots Fired 676 | 41 128 23 122 21 . 28 256 57 Gun 614 | 41 106 11 99 20 . 25 255 57 Cannon 53 | . 22 11 20 . . . . . Launcher 9 | . . 1 3 1 . 3 1 . Special . | . . . . . . . . . Kinetic 446 | . 22 11 56 20 . 25 255 57 Thermal 221 | 41 106 11 63 . . . . . Explosive 9 | . . 1 3 1 . 3 1 . Electromagnetic . | . . . . . . . . . Robot Hit Streak 28 | 8 9 4 13 9 . 7 20 28 Robot Miss Streak 8 | 2 5 8 4 2 . 3 4 1 Penetration Max . | . . . . . . . . . Secondary Targets 5 | . . . . . . . 4 1 Max Gunslinging Chain 1 | . . . . . . . 1 1 Shots Hit Robots 472 | 28 69 13 89 12 4 17 194 46 Core Hits 218 | 9 31 6 60 9 . 11 70 22 Critical Kills 1 | . . . . . . 1 . . Critical Parts Destroyed 2 | . . . . . . . 1 1 Critical Strikes 11 | 1 1 1 5 . . 1 1 1 Burn 7 | 1 1 . 5 . . . . . Destroy 3 | . . . . . . 1 1 1 Blast 1 | . . 1 . . . . . . Melee Attacks 8 | . . . . . 4 . . 4 Impact . | . . . . . . . . . Slashing 4 | . . . . . . . . 4 Piercing . | . . . . . . . . . Sneak Attacks 4 | . . . . . 4 . . . Combat Hostiles . | . . . . . . . . . Follow-up Attacks . | . . . . . . . . . Damage Inflicted 7947 | 321 979 280 1593 403 . 405 3233 733 Guns 6334 | 321 686 75 1083 191 . 221 3030 727 Cannons 614 | . 239 108 267 . . . . . Explosions 808 | . . 97 227 176 . 118 190 . Melee . | . . . . . . . . . Ramming 191 | . 54 . 16 36 . 66 13 6 Kinetic 5239 | . 239 108 723 191 . 221 3030 727 Thermal 1709 | 321 686 75 627 . . . . . Explosive 808 | . . 97 227 176 . 118 190 . Electromagnetic . | . . . . . . . . . Impact . | . . . . . . . . . Slashing . | . . . . . . . . . Piercing . | . . . . . . . . . Highest Corruption 2 | . . . 2 2 2 2 . 1 Average Corruption 1 | . . . 2 2 2 2 . 1 Corruption Purged . | . . . . . . . . . Corruption Blocked . | . . . . . . . . . Effects 33 | . . . 5 16 3 9 . . Message Errors 7 | . . . . 3 1 3 . . Matter Fused 11 | . . . 2 6 1 2 . . Heat Flow Errors 4 | . . . 1 1 1 1 . . Energy Discharges 1 | . . . . . . 1 . . Data Loss (minor) 4 | . . . 1 2 . 1 . . Data Loss (major) 1 | . . . . 1 . . . . Misfires 2 | . . . . 1 . 1 . . Alerts 1 | . . . . 1 . . . . Weapon Failures 2 | . . . 1 1 . . . . Overload Shots . | . . . . . . . . . Overflow Damage 6 | . . . 6 . . . . . Projectiles 6 | . . . 6 . . . . . Explosions . | . . . . . . . . . Melee . | . . . . . . . . . Knockbacks 6 | . 1 . 3 1 . 1 . . Impact 2 | . . . . 1 . 1 . . Kinetic 4 | . 1 . 3 . . . . . Secondary . | . . . . . . . . . Self-Inflicted Damage 9 | . . . . . . 9 . . Shots 1 | . . . . . . 1 . . Rammed 20 | . 6 1 3 5 . 3 2 . Targets Rammed 27 | . 8 1 3 7 . 5 2 1 Kicked 2 | . 2 . . . . . . . Crushed 5 | . . . . 2 . 2 . 1 Highest Temperature 407 | 120 114 63 252 93 197 83 407 119 Average Temperature 46 | 85 23 24 69 48 103 51 51 27 Received Heat Transfer 1191 | . 294 54 99 . . . 558 186 Siege Activations . | . . . . . . . . . Martial Activations . | . . . . . . . . . Shielding Activations . | . . . . . . . . . Robots Disrupted . | . . . . . . . . . Combat Hostiles . | . . . . . . . . . Robots Corrupted . | . . . . . . . . . Combat Hostiles . | . . . . . . . . . Parts Fried . | . . . . . . . . . Impact Corruptions . | . . . . . . . . . Robots Melted . | . . . . . . . . . Combat Hostiles . | . . . . . . . . . Parts Melted 11 | 2 3 . 6 . . . . . Heat Transferred 4305 | 822 1743 175 1565 . . . . . Parts Sabotaged . | . . . . . . . . . Parts Stolen . | . . . . . . . . . Parts Stripped . | . . . . . . . . . Power Chain Reactions . | . . . . . . . . . Alert | -11 -10 -10 -9 -9 -9 -8 -8 -7 ------- Run | Yrd Mat Min Mat Min Exi Min Mat Fac Maximum Alert Level 1 | . . . 1 1 . . 1 . Low Security (%) 82 | 100 100 100 76 91 . 100 48 100 Level 1 17 | . . . 23 8 . . 51 . Level 2 . | . . . . . . . . . Level 3 . | . . . . . . . . . Level 4 . | . . . . . . . . . Level 5 . | . . . . . . . . . High Security . | . . . . . . . . . Max Security . | . . . . . . . . . Peak Influence 344 | 5 117 63 277 225 . 124 344 142 Initial 89 | . . . . 61 . . . 89 Average 92 | 1 29 14 147 67 . 34 194 26 Influence Increases 2609 | 40 389 78 600 261 . 254 749 238 Destroy 0b10 Robot/C 1560 | . 240 40 340 140 . 160 480 160 Destroy 0b10 Robot/NC 235 | 40 30 5 65 20 . 10 60 5 Destroy Leader 446 | . 58 10 122 20 . 30 166 40 Allied During Kill 21 | . . . . 10 . 11 . . Successful Hack 78 | . 31 . 29 . . . 18 . Disable Machine 105 | . . 15 15 45 . 15 . 15 Destroy Structure 89 | . . 8 29 11 . 28 10 3 Lose Combat Pursuer 75 | . 30 . . 15 . . 15 15 Influence Decreases 2473 | 40 389 78 443 292 126 254 552 299 Entered New Map 330 | . . . . 96 126 . . 108 Time Decay 2092 | 40 379 78 443 196 . 234 531 191 Lost Part 31 | . 10 . . . . . 21 . Lost Ally 20 | . . . . . . 20 . . Squads Dispatched 12 | . 2 . 2 . . . 4 4 Investigation 2 | . 1 . . . . . 1 . Extermination 2 | . . . . . . . . 2 Reinforcement 5 | . 1 . 2 . . . . 2 Assault . | . . . . . . . . . Garrison 3 | . . . . . . . 3 . Intercept . | . . . . . . . . . Searches Triggered . | . . . . . . . . . Construction Impeded 1 | . . . . . . . . 1 Haulers Reinforced 1 | . . . . . . . . 1 Active Scanning Responses . | . . . . . . . . . Cargo Convoy Interrupts . | . . . . . . . . . Stealth | -11 -10 -10 -9 -9 -9 -8 -8 -7 --------- Run | Yrd Mat Min Mat Min Exi Min Mat Fac Distress Signals 6 | . 1 . 3 . . . 2 . Communications Jammed . | . . . . . . . . . Distress Signals . | . . . . . . . . . Times Spotted 114 | . 28 2 24 8 . 8 34 10 Peak Tracking Total 5 | . 3 2 5 3 . 4 5 4 Tactical Retreats 5 | . 2 . . 1 . . 1 1 Traps | -11 -10 -10 -9 -9 -9 -8 -8 -7 ------- Run | Yrd Mat Min Mat Min Exi Min Mat Fac Traps Triggered 3 | . 1 . 1 . . . . 1 Indirectly . | . . . . . . . . . Trap Hack Attempts . | . . . . . . . . . Triggered . | . . . . . . . . . Disarmed . | . . . . . . . . . Reprogrammed . | . . . . . . . . . Reused . | . . . . . . . . . Traps Extracted . | . . . . . . . . . Installed 4 | . . . . 4 . . . . Triggered . | . . . . . . . . . Most Traps Carried 1 | . . . . 1 . . . . Machines | -11 -10 -10 -9 -9 -9 -8 -8 -7 ---------- Run | Yrd Mat Min Mat Min Exi Min Mat Fac Machines Disabled 8 | . 1 1 1 3 . 1 . 1 Max in Single Turn 2 | . 1 1 1 2 . . . 1 Machines Repaired . | . . . . . . . . . Machines Dismantled . | . . . . . . . . . Machines Sabotaged . | . . . . . . . . . Overloaded Fab Kills . | . . . . . . . . . Hacking | -11 -10 -10 -9 -9 -9 -8 -8 -7 --------- Run | Yrd Mat Min Mat Min Exi Min Mat Fac Machines Accessed 23 | . 5 1 7 . 1 . 8 1 Terminals 17 | . 5 . 6 . . . 5 1 Fabricators . | . . . . . . . . . Repair Stations 1 | . . . . . . . 1 . Recycling Units . | . . . . . . . . . Scanalyzers 3 | . . . 1 . . . 2 . Garrison Access . | . . . . . . . . . Total Hacks 67 | . 16 1 23 . 1 . 24 2 Successful 33 | . 7 1 14 . 1 . 10 . Failed 33 | . 9 . 8 . . . 14 2 Catastrophic 4 | . . . 1 . . . 2 1 Database Lockouts 1 | . . . 1 . . . . . Manual 40 | . 12 . 20 . . . 8 . Terminals 52 | . 16 . 22 . . . 12 2 Fabricators . | . . . . . . . . . Repair Stations 4 | . . . . . . . 4 . Recycling Units . | . . . . . . . . . Scanalyzers 9 | . . . 1 . . . 8 . Garrison Access . | . . . . . . . . . Terminal Hacks 13 | . 3 1 5 . 1 . 3 . Record 1 | . . . . . 1 . . . Robot Analysis 2 | . 1 . 1 . . . . . Open Door 1 | . . 1 . . . . . . Branch Access Points 2 | . . . 1 . . . 1 . Terminal Index 1 | . . . 1 . . . . . Locate Traps 4 | . 1 . 1 . . . 2 . Hauler Manifests 1 | . . . 1 . . . . . Zone Layout 1 | . 1 . . . . . . . Fabricator Hacks . | . . . . . . . . . Repair Station Hacks 2 | . . . . . . . 2 . Scan Component 1 | . . . . . . . 1 . Repair 1 | . . . . . . . 1 . Recycling Unit Hacks . | . . . . . . . . . Scanalyzer 4 | . . . . . . . 4 . Insert Component 2 | . . . . . . . 2 . Analyze 1 | . . . . . . . 1 . Retrieve Study 1 | . . . . . . . 1 . Garrison Access Hacks . | . . . . . . . . . Unauthorized Hacks 14 | . 4 . 9 . . . 1 . Terminals 14 | . 4 . 9 . . . 1 . Track 1 | . . . 1 . . . . . Assimilate 2 | . 2 . . . . . . . Botnet 3 | . 1 . 2 . . . . . Operators 3 | . 1 . 1 . . . 1 . Skim 5 | . . . 5 . . . . . Fabricators . | . . . . . . . . . Repair Stations . | . . . . . . . . . Recycling Units . | . . . . . . . . . Scanalyzers . | . . . . . . . . . Garrison Access . | . . . . . . . . . Data Cores Recovered . | . . . . . . . . . Used . | . . . . . . . . . Hacking Detections 18 | . 5 . 6 . . . 6 1 Full Trace Events 1 | . . . . . . . 1 . Feedback Events . | . . . . . . . . . Feedback Blocked . | . . . . . . . . . Robot Schematics Acquired . | . . . . . . . . . Robots Built . | . . . . . . . . . Authchips . | . . . . . . . . . Time . | . . . . . . . . . Total Robot Build Rating . | . . . . . . . . . Part Schematics Acquired 1 | . . . . . . . 1 . Parts Built . | . . . . . . . . . Authchips . | . . . . . . . . . Time . | . . . . . . . . . Total Part Build Rating . | . . . . . . . . . Part Studies Acquired 1 | . . . . . . . 1 . Parts Repaired 1 | . . . . . . . 1 . Time 51 | . . . . . . . 51 . Parts Recycled . | . . . . . . . . . Recycled Matter . | . . . . . . . . . Retrieved Matter . | . . . . . . . . . Retrieved Components . | . . . . . . . . . Parts Scanalyzed 1 | . . . . . . . 1 . Part Schematics Acquired 1 | . . . . . . . 1 . Parts Damaged . | . . . . . . . . . Bothacking | -11 -10 -10 -9 -9 -9 -8 -8 -7 ------------ Run | Yrd Mat Min Mat Min Exi Min Mat Fac Used RIF Installer . | . . . . . . . . . Robots Hacked 4 | . . . . . 4 . . . Non-combat 3 | . . . . . 3 . . . Combat 1 | . . . . . 1 . . . Robot Hacks Applied 4 | . . . . . 4 . . . parse_system 4 | . . . . . 4 . . . Relay Couplers Released . | . . . . . . . . . Fabnet Peak Effective % . | . . . . . . . . . Robots Rewired . | . . . . . . . . . Allies Hacked . | . . . . . . . . . Hacks Repelled . | . . . . . . . . . Allies | -11 -10 -10 -9 -9 -9 -8 -8 -7 -------- Run | Yrd Mat Min Mat Min Exi Min Mat Fac Total Allies 4 | . 1 . . 3 . . . . Largest Group 3 | . 1 1 1 3 1 1 . . Highest-Rated Group 40 | . 10 10 10 40 16 16 . . Highest-Rated Ally 16 | . 10 10 10 16 16 16 . . Total Orders . | . . . . . . . . . Ally Attacks 36 | . . . . 21 . 15 . . Total Damage 333 | . . . . 175 . 158 . . Kills 3 | . . . . 2 . 1 . . Allies Corrupted . | . . . . . . . . . Allies Melted . | . . . . . . . . . Intel | -11 -10 -10 -9 -9 -9 -8 -8 -7 ------- Run | Yrd Mat Min Mat Min Exi Min Mat Fac Active Infowar (turns) 2113 | . 59 181 254 . . . 779 840 Sensors 540 | . . . . . . . . 540 Seismic 1753 | . 59 181 254 . . . 779 480 Robot Analysis Total 2 | . 1 . 1 . . . . . Derelict Logs Recovered 4 | . . 2 . 2 . . . . Drone Launches . | . . . . . . . . . Drone Recoveries . | . . . . . . . . . Exploration | -11 -10 -10 -9 -9 -9 -8 -8 -7 ------------- Run | Yrd Mat Min Mat Min Exi Min Mat Fac Turns Passed 7691 | 227 1349 400 1398 787 276 691 1723 840 Spaces Moved 3941 | 117 742 217 666 450 166 396 747 440 Core 12 | 12 . . . . . . . . Treads 3444 | . 362 217 666 450 166 396 747 440 Legs 485 | 105 380 . . . . . . . Wheels . | . . . . . . . . . Hover . | . . . . . . . . . Flight . | . . . . . . . . . Fastest Speed 50 | 50 120 160 160 160 160 160 160 162 Average Speed 158 | 112 145 160 160 160 160 160 173 162 Slowest Speed 240 | 120 190 160 160 240 160 240 212 162 Overloaded Moves . | . . . . . . . . . Propulsion Burnouts . | . . . . . . . . . Robots Hopped . | . . . . . . . . . Potential Cave-ins . | . . . . . . . . . Cave-ins Triggered . | . . . . . . . . . Exploration Rate (%) 57 | 5 89 60 52 91 60 89 58 11 Regions Visited 8 Branch Regions 4 Pre-discovered Areas 5 | . . 1 1 2 1 . . . Known Exits Taken 3 | . . . 1 . . 1 1 . Unknown Exits Taken 5 | 1 1 1 . 1 1 . . . Scrap Searched 4 | . . 1 . 2 . 1 . . Spaces Dug 3 | . . . . . . . . 3 Terrain Destroyed 95 | . . 10 28 11 . 36 7 3 Melee 3 | . . . . . . . . 3 Projectile . | . . . . . . . . . AOE 92 | . . 10 28 11 . 36 7 . Terrain Rammed . | . . . . . . . . . Walls Destroyed . | . . . . . . . . . Machines Disabled . | . . . . . . . . . Actions | -11 -10 -10 -9 -9 -9 -8 -8 -7 --------- Run | Yrd Mat Min Mat Min Exi Min Mat Fac Total 4764 | 169 882 246 875 491 175 422 985 519 Wait 163 | 2 24 8 29 . . . 76 24 Move 3933 | 116 741 216 665 449 165 395 746 440 Hop . | . . . . . . . . . Pick Up 86 | 10 14 3 27 7 . 3 16 6 Fast Attach 25 | 3 1 . 14 . . . 6 1 Attach 22 | 3 2 . 7 . 1 . 7 2 Detach 3 | . . . 1 . 1 . 1 . Swap 89 | . 13 3 28 6 2 2 20 15 Drop 94 | . 12 3 37 7 2 1 25 7 Fire 309 | 35 67 12 64 11 . 15 86 19 Melee 8 | . . . . . 4 . . 4 Ram . | . . . . . . . . . Kick 2 | . 2 . . . . . . . Crush 25 | . 6 1 3 7 . 5 2 1 Escape Stasis . | . . . . . . . . . Rewire 1 | . . . . . . 1 . . Trap 4 | . . . . 4 . . . . Miscellaneous . | . . . . . . . . . Route ------- -11/Scrapyard -10/Materials (discovered 4 exits: *Mat x2 / *Min x2) -10/Mines (discovered 2 exits: *Mat / Sub) -9/Materials (discovered 4 exits: *Mat x3 / *Min) -9/Mines (discovered 3 exits: *Mat x2 / *Exi) -9/Exiles -8/Mines (discovered 2 exits: *Mat x2) -8/Materials (discovered 2 exits: *Fac x2) -7/Factory (discovered 2 exits: *Fac / *Low) History --------- Turn | Location | Event 10 | -11/Scrapyard | Discovered new exit (range 14) 228 | -11/Scrapyard | Entered Materials 308 | -10/Materials | Build established: Mutant 394 | -10/Materials | Discovered new exit (range 10) 418 | -10/Materials | Discovered new exit (range 13) 430 | -10/Materials | Discovered new exit (range 8) 741 | -10/Materials | Discovered new exit (range 5) 1577 | -10/Materials | Entered Mines 1577 | -10/Mines | Accompanied by 1 ally 1616 | -10/Mines | Received a Rocket Launcher from a helpful Derelict 1617 | -10/Mines | Identified exit to Subcaves 1665 | -10/Mines | Learned location of Zion (-6) 1927 | -10/Mines | Discovered new exit (range 8) 1949 | -10/Mines | Found the Drone Emporium 1958 | -10/Mines | Found Prototype Device 1977 | -10/Mines | Entered Materials 1977 | -9/Materials | Accompanied by 1 ally 1977 | -9/Materials | Evolved 2 slots: Propulsion x1, Utility x1 2275 | -9/Materials | Identified Bomb Drone Bay 2511 | -9/Materials | Discovered new exit (range 10) 2769 | -9/Materials | Build established: Scavenger-Mutant 2875 | -9/Materials | Discovered new exit (range 14) 3020 | -9/Materials | Central database locked down 3131 | -9/Materials | Learned 4 Recycling zone layouts 3167 | -9/Materials | Identified exit to Materials 3193 | -9/Materials | Learned Recycling recycling unit intel 3202 | -9/Materials | Identified exit to Mines 3277 | -9/Materials | Learned location of 1 exit from Materials 3375 | -9/Materials | Entered Mines 3397 | -9/Mines | Build established: Mutant 3451 | -9/Mines | Found a hidden stash of uninstalled traps 3716 | -9/Mines | Discovered exit to Materials (range 14) 3732 | -9/Mines | Assisted by bots powering up and referring to "LRC-V3" 3820 | -9/Mines | Learned Materials trap positions 3889 | -9/Mines | Discovered exit to Materials (range 12) 4029 | -9/Mines | Found a damaged Exp. Sensor Array with a note attached 4034 | -9/Mines | Found Prototype Device 4126 | -9/Mines | Learned location of Storage (-7) 4155 | -9/Mines | Deemed a non-threat by the Exiles lab entrance 4155 | -9/Mines | Discovered new exit (range 5) 4162 | -9/Mines | Entered Exiles 4162 | -9/Exiles | Accompanied by 1 ally 4205 | -9/Exiles | Met 8R-AWN 4232 | -9/Exiles | Met EX-HEX 4280 | -9/Exiles | Met EX-BIN 4325 | -9/Exiles | Met EX-DEC 4421 | -9/Exiles | Discovered new exit (range 11) 4438 | -9/Exiles | Entered Mines 4438 | -8/Mines | Accompanied by 1 ally 5115 | -8/Mines | Discovered exit to Materials (range 4) 5118 | -8/Mines | Discovered exit to Materials (range 7) 5129 | -8/Mines | Entered Materials 5129 | -8/Materials | Evolved 2 slots: Propulsion x1, Weapon x1 5130 | -8/Materials | Identified exit to Factory 5131 | -8/Materials | Loaded intel: 23 trap records 5255 | -8/Materials | Garrison activated, responded to threat 5756 | -8/Materials | Identified Exp. Sensor Array 5823 | -8/Materials | Build established: Scavenger-Gunner 6448 | -8/Materials | Discovered exit to Factory (range 16) 6706 | -8/Materials | Repaired Imp. Assault Rifle 6852 | -8/Materials | Entered Factory 6852 | -7/Factory | Evolved 2 slots: Utility x2 7286 | -7/Factory | Discovered new exit (range 4) 7291 | -7/Factory | Identified exit to Factory 7299 | -7/Factory | Discovered new exit (range 5) 7305 | -7/Factory | Identified exit to Lower Caves 7692 | -7/Factory | Self-destructed Last Messages --------------- 07643_ R-06 Scavenger destroyed. 07644_ Acquired 148 matter. 07645_ K-01 Serf collects debris. 07649_ Dropped Imp. Assault Rifle. 07650_ ALERT: Potential suspicious activity detected, Programmers report to Factory Zone 5P. 07651_ K-01 Serf cleans the Manufacturing Mainframe. 07651_ Acquired Hvy. Laser. 07654_ Triggered Shock Trap. 07654_ The floor emits a surge of raw power. 07654_ System corrupted (+1). 07655_ K-01 Serf collects debris. 07659_ Acquired 69 matter. 07662_ K-01 Serf collects debris. 07681_ K-01 Serf cleans the Construction Platform. 07683_ A-02 Transporter calls for reinforcements. 07683_ ALERT: Hostile activity reported, dispatching reinforcements to area. 07686_ G-47 Trooper destroyed. 07687_ K-01 Serf cleans the Construction Platform. Map ----- +----------------------------------------------------+ | ???????????????????????????????#???#####??????# | | ??????????????????????????????? ??? ########[ | | ???????????????????????????????" """" ## ! # | | ?????????????????????????????""" """" ## #* | | ??????????????????????????? """" """" ## """ # | | ??????????????????????????? """"^"""" ## """ #### | | ??????????????????????????# ^ ## """ #### | | ??????????????????????????# """ """" ## # | | ??????????????????????????# """ """" ## = # ## | | ??????????????????????????# """ """" #####+## #? | | ??????????????????????????# """"[!+ =[[% #? | | ??????????????????????????#! [ =##[! =##### | | ??????????????????????????# ! ##= #???# | | ????????????????????????#########+####### #???# | | ????????????????????????# #??# ##### | | ????????????????????????# #?## # | | ???????????????######???# #?# # | | ???????????????# ???# #?# # | | ???????????????# ??# #?# | | ???????????????# ??# #?# | | ???????????????# ?# ### | | ???????????????# ?# | | ???????????????# # | | ???????????????# # t %* | | ???????????????# + """"""" """"" | | ???????????????# #@ ! """"""" """ | | ???????????????########## """?""" | | ????????????????????????# """??"" | | ???????????????????????? k | | ???????????????????????? """"""" | | ???????????????????????? ! """"""" | | ????????????????????????=%* ???"""" | | ??????????????????????? = ?????"""" | | ???????????????????????###+####[! ???? | | ???????????????????????????????[! w???? | | ???????????????????????????????? ????? | | ???????????????????????????????? ????? | | ????????????????????????????????? ???????? | | ???????????????????????????????????????????##### | | ???????????????????????????????????????????????### | | ?????????????????????????????????????????????????? | | ?????????????????????????????????????????????????? | | ?????????????????????????????????????????????????? | | ?????????????????????????????????????????????????? | | ?????????????????????????????????????????????????? | | ?????????????????????????????????????????????????? | | ?????????????????????????????????????????????????? | | ?????????????????????????????????????????????????? | | ?????????????????????????????????????????????????? | | ?????????????????????????????????????????????????? | +----------------------------------------------------+ Best States ------------- Heat Dissipation 45 Energy Generation 16 Energy Capacity 290 Matter Stores 300 Matter Capacity 300 Sight Range 16 Robot Scan Range 20 Terrain Scan Density 10 Armor Coverage 225 Evasion (%) 55 Targeting Accuracy 8 Recoil Reduction 4 Offensive Hacking 10 Item Schematics ----------------- Exp. Sensor Array | -8/Materials | Scanalyzed Robot Schematics ------------------ None Fabricated ------------ Nothing Repaired ---------- Imp. Assault Rifle | 15% | -8/Materials Studied --------- Lgt. Treads | -8/Materials | Hacked Alien Tech Used ----------------- None Achievements -------------- None Challenges ------------ None Game ------ Seed ResetMyomerChargecaster Manual? 0 Play Time 01:11:23 Cumulative 645.3 hours Start 2026.08.09 @ 21:12:41 End 2026.08.10 @ 18:43:29 Sessions 5 Manual Loads 0 Difficulty Rogue Special Mode None Game No. 255 Rogue 255 Adventurer 0 Explorer 0 Win Type - Total 26 Types 14/1/6/2/0/1/1/1/0/0 Lore% 92 Gallery% 82 Achievement% 68 Wizard Run 0 Options --------- Layout 0 ASCII 0 Keyboard 1 Movement Numpad Keybinds 0 Fullscreen 2 Font 18/SmallcapsGlow Map View 76x50 Zoom Use 0% Tactical HUD 1 Map Filters NONE Filters NONE Steam 1 RUN: ecf69a30-5846-43f0-ab4f-0a1846412c06